Departmental Area,Entity,Payment Date,Expense type,Expense Area,Supplier Name,Payment Reference,     Invoice Distribution Amount     ,Description,Supplier Type,Expenditure Type
UK Statistics Family,Office for National Statistics,03/10/2022,Exp - Purchase Of Goods And Services Consultants,Digital Media,Methods Business & Digital Technology Ltd,241859,"-19,332.00 ",Information Management Services,Large,Programme Expenditure
UK Statistics Family,Office for National Statistics,03/10/2022,Exp - Purchase Of Goods And Services Consultants,Digital Media,Methods Business & Digital Technology Ltd,241859," 325,878.04 ",Information Management Services,Large,Programme Expenditure
UK Statistics Family,Office for National Statistics,03/10/2022,Exp - Purchase Of Goods/Services - Incentive Payments,Survey Management,Sodexo Motivation Solutions U.K. ltd,241860, 29.61 ,Survey Response Incentive Vouchers,Large,Programme Expenditure
UK Statistics Family,Office for National Statistics,03/10/2022,Exp - Purchase Of Goods/Services - Incentive Payments,Social Survey Transformation Newport,Sodexo Motivation Solutions U.K. ltd,241860, 29.59 ,Survey Response Incentive Vouchers,Large,Programme Expenditure
UK Statistics Family,Office for National Statistics,03/10/2022,Exp - Purchase Of Goods/Services - Incentive Payments,Covid Infection Survey,Sodexo Motivation Solutions U.K. ltd,241860," 153,662.40 ",Survey Response Incentive Vouchers,Large,Programme Expenditure
UK Statistics Family,Office for National Statistics,03/10/2022,Exp - Purchase Of Goods/Services - Incentive Payments,Social Surveys Division,Sodexo Motivation Solutions U.K. ltd,241860, 49.35 ,Survey Response Incentive Vouchers,Large,Programme Expenditure
UK Statistics Family,Office for National Statistics,03/10/2022,Exp - Short-Term Contract & Agency Staff - Full Cost,Recruitment ,Parity Resources Limited,241871, 732.60 ,Information Management Services,Large,Programme Expenditure
UK Statistics Family,Office for National Statistics,03/10/2022,Exp - Purchase Of Goods/Services - Contractors,Data Architecture,Parity Resources Limited,241871," 26,938.80 ",Information Management Services,Large,Programme Expenditure
UK Statistics Family,Office for National Statistics,03/10/2022,Exp - Purchase Of Goods/Services - Contractors,IT Operations,Parity Resources Limited,241871," 3,550.50 ",Information Management Services,Large,Programme Expenditure
UK Statistics Family,Office for National Statistics,03/10/2022,Telecoms,IT Operations,Vodafone Corporate Ltd,241873," 13,402.93 ",Telecommunications,Large,Programme Expenditure
UK Statistics Family,Office for National Statistics,03/10/2022,Telecoms,Interviewer Management FiF,Vodafone Corporate Ltd,241873," 9,440.33 ",Telecommunications,Large,Programme Expenditure
UK Statistics Family,Office for National Statistics,03/10/2022,Telecoms,Interview Management IPS,Vodafone Corporate Ltd,241873," 2,509.25 ",Telecommunications,Large,Programme Expenditure
UK Statistics Family,Office for National Statistics,03/10/2022,Exp - Short-Term Contract & Agency Staff - Full Cost,Covid Infection Survey,Concept Information Technology Ltd T/A Concept Resourcing,241876," 2,637.74 ",Information Management Services,Large,Programme Expenditure
UK Statistics Family,Office for National Statistics,03/10/2022,Exp - Short-Term Contract & Agency Staff - Full Cost,N A Coordination,Concept Information Technology Ltd T/A Concept Resourcing,241876," 3,706.68 ",Information Management Services,Large,Programme Expenditure
UK Statistics Family,Office for National Statistics,03/10/2022,Exp - Short-Term Contract & Agency Staff - Full Cost,ECONOMICS STATISTICS CHANGE CENTRAL,Concept Information Technology Ltd T/A Concept Resourcing,241876, 635.76 ,Information Management Services,Large,Programme Expenditure
UK Statistics Family,Office for National Statistics,03/10/2022,Exp - Short-Term Contract & Agency Staff - Full Cost,Social Surveys Division,Concept Information Technology Ltd T/A Concept Resourcing,241876," 3,937.67 ",Information Management Services,Large,Programme Expenditure
UK Statistics Family,Office for National Statistics,03/10/2022,Exp - Short-Term Contract & Agency Staff - Full Cost,Prices Division,Concept Information Technology Ltd T/A Concept Resourcing,241876," 8,496.88 ",Information Management Services,Large,Programme Expenditure
UK Statistics Family,Office for National Statistics,03/10/2022,Exp - Short-Term Contract & Agency Staff - Full Cost,Prices Division,Concept Information Technology Ltd T/A Concept Resourcing,241876," 22,662.64 ",Information Management Services,Large,Programme Expenditure
UK Statistics Family,Office for National Statistics,03/10/2022,"ICT Outsourcing, Maintenance And Support",Digital Publishing,PA CONSULTING SERVICES LIMITED,241889," 96,000.00 ",Information Management Services,SME,Programme Expenditure
UK Statistics Family,Office for National Statistics,04/10/2022,End User Software And Hardware,IT Operations,Softcat PLC UK,242134," 152,988.00 ",Software Licenses,SME,Programme Expenditure
UK Statistics Family,Office for National Statistics,04/10/2022,Exp - Purchase Of Goods/Services - IT Contractual Services,PARTNERSHIP DEVELOPMENT,CTS (Cloud Technology Solutions Ltd),242141," 36,828.00 ",Information Management Services,Large,Programme Expenditure
UK Statistics Family,Office for National Statistics,04/10/2022,Fixtures & Fittings At Cost - Additions,Property Titchfield,Orange box Limited,242146," 67,249.09 ",Office Furniture,SME,Programme Expenditure
UK Statistics Family,Office for National Statistics,04/10/2022,Other Goods And Services,Business Development,I C Consultants Limited,242147," 72,000.00 ",Information Management Services,SME,Programme Expenditure
UK Statistics Family,Office for National Statistics,04/10/2022,Exp - Purchase Of Goods/Services - IT Contractual Services,Data As A Service,Deloitte,242149," 89,616.00 ",Information Management Services,Large,Programme Expenditure
UK Statistics Family,Office for National Statistics,05/10/2022,Other Goods And Services,Corporate Centre,Edenred (UK Group) Limited,242316," 44,350.00 ",Performance Reward Vouchers,Large,Programme Expenditure
UK Statistics Family,Office for National Statistics,05/10/2022,Exp - Seconded UK Staff - Basic Salary,FAST STREAM RECHARGES - CABINET OFFICE,Cabinet Office,242318," 42,225.00 ",Fast Stream Charges,Large,Programme Expenditure
UK Statistics Family,Office for National Statistics,05/10/2022,Exp - Purchase Of Goods And Services Consultants,"SUB-NATIONAL STATISTICS AND ANALYSIS
Account	
AccountAutocompletes on TAB	",Matt Hamnet & Associates Ltd,242322," 94,563.54 ",Consultancy,SME,Programme Expenditure
UK Statistics Family,Office for National Statistics,05/10/2022,Telecoms,IT Operations,Bt Global Services,242329," 47,915.94 ",Telecommunications,Large,Programme Expenditure
UK Statistics Family,Office for National Statistics,05/10/2022,Postage,REPROGRAPHICS,Pitney Bowes Ltd,242330," 99,735.32 ",Postage Services,Large,Programme Expenditure
UK Statistics Family,Office for National Statistics,05/10/2022,Travel And Subsistence,Corporate Centre,Corporate Travel Management ,242331," 43,195.09 ",Travel and Accommodation,SME,Programme Expenditure
UK Statistics Family,Office for National Statistics,05/10/2022,Exp - Purchase Of Goods/Services - Contractors,Testing,La International,242334," 7,535.94 ",Information Management Services,SME,Programme Expenditure
UK Statistics Family,Office for National Statistics,05/10/2022,Exp - Purchase Of Goods/Services - Contractors,Testing,La International,242334," 2,654.12 ",Information Management Services,SME,Programme Expenditure
UK Statistics Family,Office for National Statistics,05/10/2022,Exp - Purchase Of Goods/Services - Contractors,Consultancy Management,La International,242334," 2,944.94 ",Information Management Services,SME,Programme Expenditure
UK Statistics Family,Office for National Statistics,05/10/2022,Exp - Purchase Of Goods/Services - Contractors,Consultancy Management,La International,242334," 2,870.64 ",Information Management Services,SME,Programme Expenditure
UK Statistics Family,Office for National Statistics,05/10/2022,Exp - Purchase Of Goods/Services - Contractors,Security And Information Management Saim,La International,242334," 6,056.10 ",Information Management Services,SME,Programme Expenditure
UK Statistics Family,Office for National Statistics,05/10/2022,Exp - Purchase Of Goods/Services - Contractors,Data Architecture,La International,242334," 9,675.78 ",Information Management Services,SME,Programme Expenditure
UK Statistics Family,Office for National Statistics,05/10/2022,Exp - Purchase Of Goods/Services - Contractors,Tech Delivery Legacy Sp,La International,242334," 7,497.04 ",Information Management Services,SME,Programme Expenditure
UK Statistics Family,Office for National Statistics,05/10/2022,Exp - Purchase Of Goods/Services - Contractors,Tech Delivery Next Gen IT And Infrastructure,La International,242334," 6,920.32 ",Information Management Services,SME,Programme Expenditure
UK Statistics Family,Office for National Statistics,05/10/2022,Exp - Purchase Of Goods/Services - Contractors,IT Applications,La International,242334," 7,464.66 ",Information Management Services,SME,Programme Expenditure
UK Statistics Family,Office for National Statistics,05/10/2022,Training & Development,Learning And Capability,Ernst & Young LLP,242335," 26,597.40 ",Training and Educational Services,Large,Programme Expenditure
UK Statistics Family,Office for National Statistics,05/10/2022,Exp - Short-Term Contract & Agency Staff - Full Cost,Covid Infection Survey,Malikshaw Interim & Executive,242337," 5,700.70 ",Information Management Services,SME,Programme Expenditure
UK Statistics Family,Office for National Statistics,05/10/2022,Exp - Purchase Of Goods/Services - Contractors,Data Architecture,Malikshaw Interim & Executive,242337," 15,458.40 ",Information Management Services,SME,Programme Expenditure
UK Statistics Family,Office for National Statistics,05/10/2022,Exp - Purchase Of Goods/Services - Contractors,IT Operations,Malikshaw Interim & Executive,242337," 18,345.60 ",Information Management Services,SME,Programme Expenditure
UK Statistics Family,Office for National Statistics,05/10/2022,Exp - Purchase Of Goods/Services - IT Contractual Services,PARTNERSHIP DEVELOPMENT,CTS (Cloud Technology Solutions Ltd),242338," 131,391.00 ",Information Management Services,Large,Programme Expenditure
UK Statistics Family,Office for National Statistics,07/10/2022,Exp - Purchase Of Goods/Services - IT Contractual Services,Digital Publishing,University of Durham,242438," 145,913.60 ",Statistical Services,Large,Programme Expenditure
UK Statistics Family,Office for National Statistics,07/10/2022,Exp - Purchase Of Goods/Services - Contractors,Programme Support,Certes Computing Ltd,242444," 14,820.00 ",Information Management Services,SME,Programme Expenditure
UK Statistics Family,Office for National Statistics,07/10/2022,Exp - Purchase Of Goods/Services - Contractors,Data Architecture,Certes Computing Ltd,242444," 7,560.00 ",Information Management Services,SME,Programme Expenditure
UK Statistics Family,Office for National Statistics,07/10/2022,Exp - Purchase Of Goods/Services - Contractors,IT Applications,Certes Computing Ltd,242444," 29,345.13 ",Information Management Services,SME,Programme Expenditure
UK Statistics Family,Office for National Statistics,07/10/2022,Exp - Purchase Of Goods/Services - Contractors,Consultancy Management,La International,242445," 2,944.94 ",Information Management Services,SME,Programme Expenditure
UK Statistics Family,Office for National Statistics,07/10/2022,Exp - Purchase Of Goods/Services - Contractors,INTEGRATED DATA STRATEGY AND DELIVERY,La International,242445," 13,110.00 ",Information Management Services,SME,Programme Expenditure
UK Statistics Family,Office for National Statistics,07/10/2022,Exp - Purchase Of Goods/Services - Contractors,CLOUD ARCHITECTURE,La International,242445," 11,662.06 ",Information Management Services,SME,Programme Expenditure
UK Statistics Family,Office for National Statistics,07/10/2022,Exp - Purchase Of Goods/Services - Contractors,Tech Delivery Next Gen IT And Infrastructure,La International,242445," 3,844.62 ",Information Management Services,SME,Programme Expenditure
UK Statistics Family,Office for National Statistics,07/10/2022,End User Software And Hardware,IT Operations,Computacenter (Uk) Limited,242446," 115,278.58 ",Computers and Peripherals,Large,Programme Expenditure
UK Statistics Family,Office for National Statistics,07/10/2022,Exp - Seconded UK Staff - Basic Salary,Data Science Campus,Bank of England,242448," 3,594.73 ",Seconded Staff,Large,Programme Expenditure
UK Statistics Family,Office for National Statistics,07/10/2022,Exp - Seconded UK Staff - Basic Salary,Data Science Campus,Bank of England,242448," 8,387.71 ",Seconded Staff,Large,Programme Expenditure
UK Statistics Family,Office for National Statistics,07/10/2022,Exp - Seconded UK Staff - Basic Salary,Prices Division,Bank of England,242448," 14,647.30 ",Seconded Staff,Large,Programme Expenditure
UK Statistics Family,Office for National Statistics,07/10/2022,Exp - Purchase Of Goods/Services - Contractors,Consultancy Management,LA FOSSE ASSOCIATES LIMITED,242456," 12,239.80 ",Information Management Services,Large,Programme Expenditure
UK Statistics Family,Office for National Statistics,07/10/2022,Exp - Purchase Of Goods/Services - Contractors,Digital Publishing,LA FOSSE ASSOCIATES LIMITED,242456," 12,960.00 ",Information Management Services,Large,Programme Expenditure
UK Statistics Family,Office for National Statistics,07/10/2022,Exp - Purchase Of Goods/Services - Contractors,Data Architecture,LA FOSSE ASSOCIATES LIMITED,242456," 37,800.00 ",Information Management Services,Large,Programme Expenditure
UK Statistics Family,Office for National Statistics,07/10/2022,Exp - Purchase Of Goods/Services - Contractors,Data Architecture,LA FOSSE ASSOCIATES LIMITED,242456," 12,960.00 ",Information Management Services,Large,Programme Expenditure
UK Statistics Family,Office for National Statistics,07/10/2022,Exp - Purchase Of Goods/Services - Contractors,CDIO UNGP,LA FOSSE ASSOCIATES LIMITED,242456," 20,340.00 ",Information Management Services,Large,Programme Expenditure
UK Statistics Family,Office for National Statistics,07/10/2022,Postage,Interviewer Support,Banner Group Ltd,242459," 34,000.00 ",Postage Services,SME,Programme Expenditure
UK Statistics Family,Office for National Statistics,07/10/2022,Exp - Purchase Of Goods/Services - Contractors,Covid Infection Survey,Talent International,242462," 35,159.76 ",Information Management Services,SME,Programme Expenditure
UK Statistics Family,Office for National Statistics,07/10/2022,Exp - Short-Term Contract & Agency Staff - Full Cost,Data Architecture,Talent International,242462, 621.24 ,Information Management Services,SME,Programme Expenditure
UK Statistics Family,Office for National Statistics,07/10/2022,Exp - Purchase Of Goods/Services - Contractors,Tech Delivery Legacy Sp,Talent International,242462," 20,134.80 ",Information Management Services,SME,Programme Expenditure
UK Statistics Family,Office for National Statistics,07/10/2022,Exp - Purchase Of Goods/Services - Contractors,IT Applications,Talent International,242462," 34,472.40 ",Information Management Services,SME,Programme Expenditure
UK Statistics Family,Office for National Statistics,07/10/2022,Exp - Purchase Of Goods/Services - Contractors,IT Operations,Talent International,242462," 3,600.00 ",Information Management Services,SME,Programme Expenditure
UK Statistics Family,Office for National Statistics,07/10/2022,"ICT Outsourcing, Maintenance And Support",Digital Publishing,PA CONSULTING SERVICES LIMITED,242463," 84,000.00 ",Information Management Services,SME,Programme Expenditure
UK Statistics Family,Office for National Statistics,10/10/2022,"ICT Outsourcing, Maintenance And Support",IT Operations,Scc,242659," 310,728.96 ",Information Management Services,Large,Programme Expenditure
UK Statistics Family,Office for National Statistics,10/10/2022,Exp - Purchase Of Goods/Services - Contractors,Testing,Certes Computing Ltd,242663," 13,719.38 ",Information Management Services,SME,Programme Expenditure
UK Statistics Family,Office for National Statistics,10/10/2022,Exp - Purchase Of Goods/Services - Contractors,Security Advisory,Certes Computing Ltd,242663," 17,485.78 ",Information Management Services,SME,Programme Expenditure
UK Statistics Family,Office for National Statistics,10/10/2022,Exp - Purchase Of Goods/Services - Contractors,Data Architecture,Certes Computing Ltd,242663," 30,275.21 ",Information Management Services,SME,Programme Expenditure
UK Statistics Family,Office for National Statistics,10/10/2022,Exp - Purchase Of Goods/Services - Contractors,Data Architecture,Certes Computing Ltd,242663," 8,262.32 ",Information Management Services,SME,Programme Expenditure
UK Statistics Family,Office for National Statistics,10/10/2022,Exp - Purchase Of Goods/Services - Contractors,CLOUD ARCHITECTURE,Certes Computing Ltd,242663," 3,912.14 ",Information Management Services,SME,Programme Expenditure
UK Statistics Family,Office for National Statistics,10/10/2022,Exp - Purchase Of Goods/Services - Contractors,CDIO UNGP,Certes Computing Ltd,242663," 15,510.10 ",Information Management Services,SME,Programme Expenditure
UK Statistics Family,Office for National Statistics,10/10/2022,Exp - Purchase Of Goods/Services - Contractors,DATA ENGINEERING OPERATIONS AND DELIVERY,Certes Computing Ltd,242663," 12,195.12 ",Information Management Services,SME,Programme Expenditure
UK Statistics Family,Office for National Statistics,10/10/2022,Exp - Purchase Of Goods/Services - Contractors,Testing,La International,242664," 9,287.22 ",Information Management Services,SME,Programme Expenditure
UK Statistics Family,Office for National Statistics,10/10/2022,Exp - Purchase Of Goods/Services - Contractors,Testing,La International,242664," 2,654.12 ",Information Management Services,SME,Programme Expenditure
UK Statistics Family,Office for National Statistics,10/10/2022,Exp - Purchase Of Goods/Services - Contractors,Digital Publishing,La International,242664," 7,186.80 ",Information Management Services,SME,Programme Expenditure
UK Statistics Family,Office for National Statistics,10/10/2022,Exp - Purchase Of Goods/Services - Contractors,Security And Information Management Saim,La International,242664," 13,680.00 ",Information Management Services,SME,Programme Expenditure
UK Statistics Family,Office for National Statistics,10/10/2022,Exp - Purchase Of Goods/Services - Contractors,Tech Delivery Legacy Sp,La International,242664," 4,165.02 ",Information Management Services,SME,Programme Expenditure
UK Statistics Family,Office for National Statistics,10/10/2022,Exp - Purchase Of Goods/Services - Contractors,IT Operations,La International,242664, 826.24 ,Information Management Services,SME,Programme Expenditure
UK Statistics Family,Office for National Statistics,10/10/2022,Exp - Purchase Of Goods/Services - Contractors,IT Operations,La International,242664," 23,411.04 ",Information Management Services,SME,Programme Expenditure
UK Statistics Family,Office for National Statistics,10/10/2022,Exp - Purchase Of Goods/Services - Contractors,Data Architecture,Malikshaw Interim & Executive,242666," 20,865.60 ",Information Management Services,SME,Programme Expenditure
UK Statistics Family,Office for National Statistics,10/10/2022,Exp - Purchase Of Goods/Services - Contractors,DATA ENGINEERING OPERATIONS AND DELIVERY,Malikshaw Interim & Executive,242666," 19,605.60 ",Information Management Services,SME,Programme Expenditure
UK Statistics Family,Office for National Statistics,10/10/2022,Exp - Purchase Of Goods/Services - Contractors,Data Architecture,SmartSourcing Ltd,242671," 37,272.10 ",Information Management Services,SME,Programme Expenditure
UK Statistics Family,Office for National Statistics,10/10/2022,Exp - Purchase Of Goods/Services - Contractors,DATA ENGINEERING OPERATIONS AND DELIVERY,SmartSourcing Ltd,242671," 13,843.87 ",Information Management Services,SME,Programme Expenditure
UK Statistics Family,Office for National Statistics,10/10/2022,Exp - Purchase Of Goods/Services - Contractors,Consultancy Management,Talent International,242676," 3,600.00 ",Information Management Services,SME,Programme Expenditure
UK Statistics Family,Office for National Statistics,10/10/2022,Exp - Purchase Of Goods/Services - Contractors,Data Architecture,Talent International,242676," 25,500.00 ",Information Management Services,SME,Programme Expenditure
UK Statistics Family,Office for National Statistics,10/10/2022,Exp - Purchase Of Goods/Services - Contractors,Data Architecture,Talent International,242676," 22,080.00 ",Information Management Services,SME,Programme Expenditure
UK Statistics Family,Office for National Statistics,11/10/2022,Exp - Purchase Of Goods/Services - IT Contractual Services,IT Operations,Ibm United Kingdom Ltd,242849," 65,376.00 ",Information Management Services,Large,Programme Expenditure
UK Statistics Family,Office for National Statistics,11/10/2022,Exp - Purchase Of Goods/Services - Contractors,Security Advisory,Certes Computing Ltd,242851," 20,538.76 ",Information Management Services,SME,Programme Expenditure
UK Statistics Family,Office for National Statistics,11/10/2022,Exp - Purchase Of Goods/Services - Contractors,Data Architecture,Certes Computing Ltd,242851," 6,517.58 ",Information Management Services,SME,Programme Expenditure
UK Statistics Family,Office for National Statistics,11/10/2022,Exp - Purchase Of Goods/Services - Contractors,Consultancy Management,La International,242852," 3,681.18 ",Information Management Services,SME,Programme Expenditure
UK Statistics Family,Office for National Statistics,11/10/2022,Exp - Purchase Of Goods/Services - Contractors,STRATEGY SYNTHESIS AND CO-ORDINATION,La International,242852," 5,682.42 ",Information Management Services,SME,Programme Expenditure
UK Statistics Family,Office for National Statistics,11/10/2022,Exp - Purchase Of Goods/Services - Contractors,Security And Information Management Saim,La International,242852," 5,700.00 ",Information Management Services,SME,Programme Expenditure
UK Statistics Family,Office for National Statistics,11/10/2022,Exp - Purchase Of Goods/Services - Contractors,Data Architecture,La International,242852," 7,706.12 ",Information Management Services,SME,Programme Expenditure
UK Statistics Family,Office for National Statistics,11/10/2022,Exp - Purchase Of Goods/Services - Contractors,CLOUD ARCHITECTURE,La International,242852," 4,165.02 ",Information Management Services,SME,Programme Expenditure
UK Statistics Family,Office for National Statistics,11/10/2022,Exp - Short-Term Contract & Agency Staff - Full Cost,Recruitment ,Talent International,242861," 6,441.94 ",Information Management Services,SME,Programme Expenditure
UK Statistics Family,Office for National Statistics,11/10/2022,Exp - Purchase Of Goods/Services - Contractors,Tech Delivery Next Gen IT And Infrastructure,Talent International,242861," 18,874.80 ",Information Management Services,SME,Programme Expenditure
UK Statistics Family,Office for National Statistics,11/10/2022,Exp - Purchase Of Goods/Services - Contractors,IT Operations,Talent International,242861," 13,800.00 ",Information Management Services,SME,Programme Expenditure
UK Statistics Family,Office for National Statistics,12/10/2022,Surveys,Crime Statistics,Kantar Public UK Ltd.,243041," 474,045.90 ",Statistical Services,SME,Programme Expenditure
UK Statistics Family,Office for National Statistics,12/10/2022,Exp - Purchase Of Goods/Services - IT Contractual Services,Digital Delivery,Armakuni Ltd,243045," 38,940.00 ",Information Management Services,SME,Programme Expenditure
UK Statistics Family,Office for National Statistics,12/10/2022,Exp - Purchase Of Goods/Services - Contractors,Data Capability,Parity Resources Limited,243048," 4,355.26 ",Information Management Services,Large,Programme Expenditure
UK Statistics Family,Office for National Statistics,12/10/2022,Exp - Purchase Of Goods/Services - Contractors,Testing,Parity Resources Limited,243048," 2,699.22 ",Information Management Services,Large,Programme Expenditure
UK Statistics Family,Office for National Statistics,12/10/2022,Exp - Purchase Of Goods/Services - Contractors,Security Advisory,Parity Resources Limited,243048," 20,510.40 ",Information Management Services,Large,Programme Expenditure
UK Statistics Family,Office for National Statistics,12/10/2022,Exp - Purchase Of Goods/Services - Contractors,Strategy And Architecture,Parity Resources Limited,243048," 4,210.50 ",Information Management Services,Large,Programme Expenditure
UK Statistics Family,Office for National Statistics,12/10/2022,Exp - Purchase Of Goods/Services - Contractors,Tech Delivery Next Gen IT And Infrastructure,Parity Resources Limited,243048," 3,200.40 ",Information Management Services,Large,Programme Expenditure
UK Statistics Family,Office for National Statistics,12/10/2022,Exp - Purchase Of Goods/Services - Contractors,IT Applications,Parity Resources Limited,243048," 4,713.30 ",Information Management Services,Large,Programme Expenditure
UK Statistics Family,Office for National Statistics,12/10/2022,Exp - Purchase Of Goods/Services - Contractors,DATA ENGINEERING OPERATIONS AND DELIVERY,Parity Resources Limited,243048," 10,167.30 ",Information Management Services,Large,Programme Expenditure
UK Statistics Family,Office for National Statistics,12/10/2022,Other Professional Services,Property Services,Arcadis LLP,243051," 42,000.00 ",Consultancy,Large,Programme Expenditure
UK Statistics Family,Office for National Statistics,12/10/2022,Exp - Purchase Of Goods/Services - IT Contractual Services,Policy Secretariat,Diligent Boardbooks Limited,243057," 38,160.00 ",Information Management Services,Large,Programme Expenditure
UK Statistics Family,Office for National Statistics,12/10/2022,Travel And Subsistence,Corporate Centre,Corporate Travel Management ,243059," 38,396.79 ",Travel and Accommodation,SME,Programme Expenditure
UK Statistics Family,Office for National Statistics,12/10/2022,Exp - Purchase Of Goods And Services Consultants,Productivity Research And Professional Development,Niesr,243064," 312,805.20 ",Statistical Services,SME,Programme Expenditure
UK Statistics Family,Office for National Statistics,12/10/2022,End User Software And Hardware,IT Operations,Akhter Computers PLC,243065," 269,904.00 ",Software Licenses,SME,Programme Expenditure
UK Statistics Family,Office for National Statistics,12/10/2022,Exp - Purchase Of Goods/Services - Contractors,Strategy And Architecture,Certes Computing Ltd,243067," 32,157.00 ",Information Management Services,SME,Programme Expenditure
UK Statistics Family,Office for National Statistics,12/10/2022,Stationery,Lodgecard,Royal Bank of Scotland,243069," 9,278.41 ",Multiple Procurement Card Purchases  - Stationery ,Large,Programme Expenditure
UK Statistics Family,Office for National Statistics,12/10/2022,Other Goods And Services,GPC,Royal Bank of Scotland,243069," 59,968.70 ",Multiple Procurement Card Purchases - other goods/services  ,Large,Programme Expenditure
UK Statistics Family,Office for National Statistics,12/10/2022,Travel And Subsistence,Car Hire,Royal Bank of Scotland,243069," 21,616.67 ",Multiple Procurement Card Purchases - Vehicle Hire  ,Large,Programme Expenditure
UK Statistics Family,Office for National Statistics,13/10/2022,Exp - Purchase Of Goods/Services - Contractors,Strategy And Architecture,Certes Computing Ltd,243212," 12,600.00 ",Information Management Services,SME,Programme Expenditure
UK Statistics Family,Office for National Statistics,13/10/2022,Exp - Purchase Of Goods/Services - Contractors,Strategy And Architecture,Certes Computing Ltd,243212," 17,068.72 ",Information Management Services,SME,Programme Expenditure
UK Statistics Family,Office for National Statistics,13/10/2022,Hosting,CLOUD ARCHITECTURE,CTS (Cloud Technology Solutions Ltd),243217," 10,873.36 ",Information Management Services,Large,Programme Expenditure
UK Statistics Family,Office for National Statistics,13/10/2022,Hosting,CLOUD ARCHITECTURE,CTS (Cloud Technology Solutions Ltd),243217," 190,002.36 ",Information Management Services,Large,Programme Expenditure
UK Statistics Family,Office for National Statistics,13/10/2022,Exp - Purchase Of Goods/Services - Contractors,Data Capability,Parity Resources Limited,243221," 4,355.26 ",Information Management Services,Large,Programme Expenditure
UK Statistics Family,Office for National Statistics,13/10/2022,Exp - Purchase Of Goods/Services - Contractors,Testing,Parity Resources Limited,243221," 3,600.00 ",Information Management Services,Large,Programme Expenditure
UK Statistics Family,Office for National Statistics,13/10/2022,Exp - Purchase Of Goods/Services - Contractors,Security Advisory,Parity Resources Limited,243221," 11,487.30 ",Information Management Services,Large,Programme Expenditure
UK Statistics Family,Office for National Statistics,13/10/2022,Exp - Purchase Of Goods/Services - Contractors,Data Architecture,Parity Resources Limited,243221," 4,810.50 ",Information Management Services,Large,Programme Expenditure
UK Statistics Family,Office for National Statistics,13/10/2022,Exp - Purchase Of Goods/Services - Contractors,CDIO UNGP,Parity Resources Limited,243221," 4,600.50 ",Information Management Services,Large,Programme Expenditure
UK Statistics Family,Office for National Statistics,13/10/2022,Exp - Purchase Of Goods/Services - Contractors,Tech Delivery Next Gen IT And Infrastructure,Parity Resources Limited,243221," 12,421.50 ",Information Management Services,Large,Programme Expenditure
UK Statistics Family,Office for National Statistics,13/10/2022,Exp - Purchase Of Goods/Services - Contractors,IT Applications,Parity Resources Limited,243221," 16,967.88 ",Information Management Services,Large,Programme Expenditure
UK Statistics Family,Office for National Statistics,13/10/2022,Exp - Purchase Of Goods/Services - Contractors,DATA ENGINEERING OPERATIONS AND DELIVERY,Parity Resources Limited,243221," 3,128.40 ",Information Management Services,Large,Programme Expenditure
UK Statistics Family,Office for National Statistics,13/10/2022,EXP - PURCHASE OF GOODS/SERVICES -  NON IT CONTRACTUAL PAYMENTS,Stakeholder Engagement And Comms,Cabinet Office,243222," 57,031.44 ",Seconded Staff,Large,Programme Expenditure
UK Statistics Family,Office for National Statistics,13/10/2022,Exp - Purchase Of Goods/Services - Training & Development - Seminar & Conference Fees,Productivity Research And Professional Development,Cambridge University,243224," 36,608.00 ",Training and Educational Services,Large,Programme Expenditure
UK Statistics Family,Office for National Statistics,13/10/2022,Exp - Purchase Of Goods/Services - Contractors,International Trade And Transactions,Talent International,243229," 13,956.00 ",Information Management Services,SME,Programme Expenditure
UK Statistics Family,Office for National Statistics,13/10/2022,Exp - Purchase Of Goods/Services - Contractors,Data Architecture,Talent International,243229," 15,300.00 ",Information Management Services,SME,Programme Expenditure
UK Statistics Family,Office for National Statistics,13/10/2022,Exp - Purchase Of Goods/Services - Contractors,DATA ENGINEERING OPERATIONS AND DELIVERY,Talent International,243229," 23,490.00 ",Information Management Services,SME,Programme Expenditure
UK Statistics Family,Office for National Statistics,13/10/2022,Exp - Short-Term Contract & Agency Staff - Full Cost,SOCIAL SURVEY DATA PROCESSING,Talent International,243229," 15,600.00 ",Information Management Services,SME,Programme Expenditure
UK Statistics Family,Office for National Statistics,14/10/2022,Exp - Purchase Of Goods/Services - Contractors,Business Architecture Transformation And Statistical Strategy,Malikshaw Interim & Executive,243352," 16,380.00 ",Information Management Services,SME,Programme Expenditure
UK Statistics Family,Office for National Statistics,14/10/2022,Exp - Purchase Of Goods/Services - Contractors,INTEGRATED DATA STRATEGY AND DELIVERY,Malikshaw Interim & Executive,243352," 15,120.00 ",Information Management Services,SME,Programme Expenditure
UK Statistics Family,Office for National Statistics,14/10/2022,Exp - Purchase Of Goods/Services - Contractors,INTEGRATED DATA STRATEGY AND DELIVERY,Malikshaw Interim & Executive,243352," 14,439.10 ",Information Management Services,SME,Programme Expenditure
UK Statistics Family,Office for National Statistics,14/10/2022,Exp - Purchase Of Goods And Services Consultants,Digital Publishing,Methods Business & Digital Technology Ltd,243354," 182,259.00 ",Information Management Services,Large,Programme Expenditure
UK Statistics Family,Office for National Statistics,14/10/2022,Exp - Purchase Of Goods And Services Consultants,Digital Media,Methods Business & Digital Technology Ltd,243354," 103,481.26 ",Information Management Services,Large,Programme Expenditure
UK Statistics Family,Office for National Statistics,14/10/2022,Exp - Purchase Of Goods/Services - Incentive Payments,Survey Management,Sodexo Motivation Solutions U.K. ltd,243355," 6,433.50 ",Survey Response Incentive Vouchers,Large,Programme Expenditure
UK Statistics Family,Office for National Statistics,14/10/2022,Exp - Purchase Of Goods/Services - Incentive Payments,Survey Management,Sodexo Motivation Solutions U.K. ltd,243355," 6,066.76 ",Survey Response Incentive Vouchers,Large,Programme Expenditure
UK Statistics Family,Office for National Statistics,14/10/2022,Exp - Purchase Of Goods/Services - Incentive Payments,Survey Management,Sodexo Motivation Solutions U.K. ltd,243355," 7,711.15 ",Survey Response Incentive Vouchers,Large,Programme Expenditure
UK Statistics Family,Office for National Statistics,14/10/2022,Exp - Purchase Of Goods/Services - Incentive Payments,Survey Management,Sodexo Motivation Solutions U.K. ltd,243355," 27,047.68 ",Survey Response Incentive Vouchers,Large,Programme Expenditure
UK Statistics Family,Office for National Statistics,14/10/2022,Exp - Purchase Of Goods/Services - Incentive Payments,Social Survey Transformation Newport,Sodexo Motivation Solutions U.K. ltd,243355, 19.73 ,Survey Response Incentive Vouchers,Large,Programme Expenditure
UK Statistics Family,Office for National Statistics,14/10/2022,Exp - Purchase Of Goods/Services - Incentive Payments,Survey Management,Sodexo Motivation Solutions U.K. ltd,243355," 71,411.25 ",Survey Response Incentive Vouchers,Large,Programme Expenditure
UK Statistics Family,Office for National Statistics,14/10/2022,Exp - Purchase Of Goods/Services - Incentive Payments,Covid Infection Survey,Sodexo Motivation Solutions U.K. ltd,243355," 86,632.20 ",Survey Response Incentive Vouchers,Large,Programme Expenditure
UK Statistics Family,Office for National Statistics,14/10/2022,Exp - Purchase Of Goods/Services - Incentive Payments,GSS Strategy Delivery,Sodexo Motivation Solutions U.K. ltd,243355, 29.61 ,Survey Response Incentive Vouchers,Large,Programme Expenditure
UK Statistics Family,Office for National Statistics,14/10/2022,Exp - Purchase Of Goods/Services - Incentive Payments,Strategy And Engagement,Sodexo Motivation Solutions U.K. ltd,243355, 98.69 ,Survey Response Incentive Vouchers,Large,Programme Expenditure
UK Statistics Family,Office for National Statistics,14/10/2022,Exp - Purchase Of Goods/Services - Incentive Payments,Crime Statistics,Sodexo Motivation Solutions U.K. ltd,243355, 246.70 ,Survey Response Incentive Vouchers,Large,Programme Expenditure
UK Statistics Family,Office for National Statistics,14/10/2022,Exp - Purchase Of Goods/Services - Incentive Payments,Survey Management,Sodexo Motivation Solutions U.K. ltd,243355," 22,576.05 ",Survey Response Incentive Vouchers,Large,Programme Expenditure
UK Statistics Family,Office for National Statistics,14/10/2022,Exp - Purchase Of Goods/Services - Contractors,INTEGRATED DATA STRATEGY AND DELIVERY,LA FOSSE ASSOCIATES LIMITED,243356," 29,640.00 ",Information Management Services,Large,Programme Expenditure
UK Statistics Family,Office for National Statistics,14/10/2022,Other Goods And Services,Security And Information Management Saim,Cabinet Office,243361," 65,382.42 ",Security Vetting Services,Large,Programme Expenditure
UK Statistics Family,Office for National Statistics,14/10/2022,"ICT Outsourcing, Maintenance And Support",Digital Publishing,PA CONSULTING SERVICES LIMITED,243363," 44,326.80 ",Information Management Services,SME,Programme Expenditure
UK Statistics Family,Office for National Statistics,17/10/2022,Accommodation & Building Management,Property London,Westminster City Council,243461," 77,672.00 ",Non-domestic Rates,Large,Programme Expenditure
UK Statistics Family,Office for National Statistics,17/10/2022,Exp - Purchase Of Goods/Services - IT Contractual Services,IT Operations,Ibm United Kingdom Ltd,243462," 125,220.00 ",Information Management Services,Large,Programme Expenditure
UK Statistics Family,Office for National Statistics,17/10/2022,Surveys,International Trade And Transactions,VesselsValue ltd  ,243467," 35,000.00 ",Data Acquisition,SME,Programme Expenditure
UK Statistics Family,Office for National Statistics,17/10/2022,FM Contract Payments,Property Newport,Pitney Bowes Ltd,243477," 4,040.00 ",Postage Services,Large,Programme Expenditure
UK Statistics Family,Office for National Statistics,17/10/2022,Postage,Property Titchfield,Pitney Bowes Ltd,243477," 36,362.26 ",Postage Services,Large,Programme Expenditure
UK Statistics Family,Office for National Statistics,18/10/2022,Buildings Under Construction,Property Titchfield,Vinci Construction UK Limited,243660," 62,432.10 ",Facilities Mangement Services,Large,Programme Expenditure
UK Statistics Family,Office for National Statistics,18/10/2022,Exp - Short-Term Contract & Agency Staff - Full Cost,Business Change Support,Concept Information Technology Ltd T/A Concept Resourcing,243661," 2,822.78 ",Information Management Services,Large,Programme Expenditure
UK Statistics Family,Office for National Statistics,18/10/2022,Exp - Short-Term Contract & Agency Staff - Full Cost,Business Change Support,Concept Information Technology Ltd T/A Concept Resourcing,243661," 2,822.78 ",Information Management Services,Large,Programme Expenditure
UK Statistics Family,Office for National Statistics,18/10/2022,Exp - Short-Term Contract & Agency Staff - Full Cost,Commercial Services,Concept Information Technology Ltd T/A Concept Resourcing,243661," 2,535.82 ",Information Management Services,Large,Programme Expenditure
UK Statistics Family,Office for National Statistics,18/10/2022,Exp - Short-Term Contract & Agency Staff - Full Cost,Ask Business Services,Concept Information Technology Ltd T/A Concept Resourcing,243661," 3,049.75 ",Information Management Services,Large,Programme Expenditure
UK Statistics Family,Office for National Statistics,18/10/2022,Exp - Short-Term Contract & Agency Staff - Full Cost,REPROGRAPHICS,Concept Information Technology Ltd T/A Concept Resourcing,243661," 2,629.44 ",Information Management Services,Large,Programme Expenditure
UK Statistics Family,Office for National Statistics,18/10/2022,Exp - Short-Term Contract & Agency Staff - Full Cost,MSA Central,Concept Information Technology Ltd T/A Concept Resourcing,243661, 627.29 ,Information Management Services,Large,Programme Expenditure
UK Statistics Family,Office for National Statistics,18/10/2022,Exp - Short-Term Contract & Agency Staff - Full Cost,Public Sector And Households,Concept Information Technology Ltd T/A Concept Resourcing,243661," 1,725.04 ",Information Management Services,Large,Programme Expenditure
UK Statistics Family,Office for National Statistics,18/10/2022,Exp - Short-Term Contract & Agency Staff - Full Cost,Public Sector And Households,Concept Information Technology Ltd T/A Concept Resourcing,243661," 8,871.57 ",Information Management Services,Large,Programme Expenditure
UK Statistics Family,Office for National Statistics,18/10/2022,Exp - Short-Term Contract & Agency Staff - Full Cost,Business Statistics Transformation,Concept Information Technology Ltd T/A Concept Resourcing,243661," 4,977.50 ",Information Management Services,Large,Programme Expenditure
UK Statistics Family,Office for National Statistics,19/10/2022,Travel And Subsistence,Corporate Centre,Corporate Travel Management ,243844," 46,356.86 ",Travel and Accommodation,SME,Programme Expenditure
UK Statistics Family,Office for National Statistics,19/10/2022,Exp - Purchase Of Goods/Services - Contractors,Testing,La International,243845," 13,718.40 ",Information Management Services,SME,Programme Expenditure
UK Statistics Family,Office for National Statistics,19/10/2022,Exp - Purchase Of Goods/Services - Contractors,Testing,La International,243845," 2,654.12 ",Information Management Services,SME,Programme Expenditure
UK Statistics Family,Office for National Statistics,19/10/2022,Exp - Purchase Of Goods/Services - Contractors,Consultancy Management,La International,243845," 3,588.30 ",Information Management Services,SME,Programme Expenditure
UK Statistics Family,Office for National Statistics,19/10/2022,Exp - Purchase Of Goods/Services - Contractors,Data Architecture,La International,243845," 9,371.80 ",Information Management Services,SME,Programme Expenditure
UK Statistics Family,Office for National Statistics,19/10/2022,Exp - Purchase Of Goods/Services - Contractors,CLOUD ARCHITECTURE,La International,243845," 4,165.02 ",Information Management Services,SME,Programme Expenditure
UK Statistics Family,Office for National Statistics,19/10/2022,Exp - Purchase Of Goods/Services - Contractors,Tech Delivery Legacy Sp,La International,243845," 4,165.02 ",Information Management Services,SME,Programme Expenditure
UK Statistics Family,Office for National Statistics,19/10/2022,Exp - Purchase Of Goods/Services - Contractors,Tech Delivery Next Gen IT And Infrastructure,La International,243845," 3,844.62 ",Information Management Services,SME,Programme Expenditure
UK Statistics Family,Office for National Statistics,19/10/2022,Exp - Purchase Of Goods/Services - Contractors,IT Operations,La International,243845," 10,327.96 ",Information Management Services,SME,Programme Expenditure
UK Statistics Family,Office for National Statistics,19/10/2022,Exp - Purchase Of Goods/Services - IT Contractual Services,CLOUD ARCHITECTURE,CTS (Cloud Technology Solutions Ltd),243851," 128,013.60 ",Information Management Services,Large,Programme Expenditure
UK Statistics Family,Office for National Statistics,19/10/2022,Exp - Purchase Of Goods/Services - IT Contractual Services,CDIO UNGP,CTS (Cloud Technology Solutions Ltd),243851," 113,055.00 ",Information Management Services,Large,Programme Expenditure
UK Statistics Family,Office for National Statistics,19/10/2022,Exp - Purchase Of Goods/Services - IT Contractual Services,IT Applications,Diegesis Limited,243853," 209,820.00 ",Information Management Services,Large,Programme Expenditure
UK Statistics Family,Office for National Statistics,19/10/2022,Telecoms,IT Operations,Freedom Communications (UK) Ltd,243856," 32,650.73 ",Information Management Services,Large,Programme Expenditure
UK Statistics Family,Office for National Statistics,19/10/2022,End User Software And Hardware,IT Operations,Insight Direct,243857," 49,841.22 ",Software Licenses,Large,Programme Expenditure
UK Statistics Family,Office for National Statistics,19/10/2022,Hosting,CDIO UNGP,Google Cloud EMEA Limited,243859," 27,863.98 ",Information Management Services,Large,Programme Expenditure
UK Statistics Family,Office for National Statistics,19/10/2022,FM Contract Payments,Property Newport,Purascope Limited,243861," 41,946.60 ",Facilities Mangement Services,Large,Programme Expenditure
UK Statistics Family,Office for National Statistics,20/10/2022,PPE - NON-PROPERTY (LEASED NON-PFI) - COST - ADDITIONS (AS LESSEE),IT Operations,Crown Hosting Data Centres Limited,244001," 66,422.74 ",Information Management Services,SME,Programme Expenditure
UK Statistics Family,Office for National Statistics,20/10/2022,Exp - Purchase Of Goods/Services - IT Contractual Services,Digital Publishing,Swirrl It Ltd,244002," 141,216.00 ",Information Management Services,SME,Programme Expenditure
UK Statistics Family,Office for National Statistics,20/10/2022,Telecoms,IT Operations,Cdw Limited,244008," 35,536.80 ",Information Management Services,Large,Programme Expenditure
UK Statistics Family,Office for National Statistics,20/10/2022,Hosting,CLOUD ARCHITECTURE,Amazon Web Services Inc,244016," 238,121.09 ",Information Management Services,Large,Programme Expenditure
UK Statistics Family,Office for National Statistics,20/10/2022,Exp - Purchase Of Goods/Services - Incentive Payments,Survey Management,Sodexo Motivation Solutions U.K. ltd,244018, 503.35 ,Survey Response Incentive Vouchers,Large,Programme Expenditure
UK Statistics Family,Office for National Statistics,20/10/2022,Exp - Purchase Of Goods/Services - Incentive Payments,Survey Management,Sodexo Motivation Solutions U.K. ltd,244018, 592.14 ,Survey Response Incentive Vouchers,Large,Programme Expenditure
UK Statistics Family,Office for National Statistics,20/10/2022,Exp - Purchase Of Goods/Services - Incentive Payments,Survey Management,Sodexo Motivation Solutions U.K. ltd,244018," 25,858.72 ",Survey Response Incentive Vouchers,Large,Programme Expenditure
UK Statistics Family,Office for National Statistics,20/10/2022,Exp - Purchase Of Goods/Services - Incentive Payments,Social Survey Transformation Newport,Sodexo Motivation Solutions U.K. ltd,244018, 9.86 ,Survey Response Incentive Vouchers,Large,Programme Expenditure
UK Statistics Family,Office for National Statistics,20/10/2022,Exp - Purchase Of Goods/Services - Incentive Payments,Survey Management,Sodexo Motivation Solutions U.K. ltd,244018," 4,120.24 ",Survey Response Incentive Vouchers,Large,Programme Expenditure
UK Statistics Family,Office for National Statistics,20/10/2022,Exp - Short-Term Contract & Agency Staff - Full Cost,Recruitment ,Parity Resources Limited,244020, 732.60 ,Information Management Services,Large,Programme Expenditure
UK Statistics Family,Office for National Statistics,20/10/2022,Exp - Short-Term Contract & Agency Staff - Full Cost,Recruitment ,Parity Resources Limited,244020," 3,247.20 ",Information Management Services,Large,Programme Expenditure
UK Statistics Family,Office for National Statistics,20/10/2022,Exp - Purchase Of Goods/Services - Contractors,Security Advisory,Parity Resources Limited,244020," 4,510.50 ",Information Management Services,Large,Programme Expenditure
UK Statistics Family,Office for National Statistics,20/10/2022,Exp - Purchase Of Goods/Services - Contractors,Data Architecture,Parity Resources Limited,244020," 8,658.90 ",Information Management Services,Large,Programme Expenditure
UK Statistics Family,Office for National Statistics,20/10/2022,Exp - Purchase Of Goods/Services - Contractors,Strategy And Architecture,Parity Resources Limited,244020," 4,210.50 ",Information Management Services,Large,Programme Expenditure
UK Statistics Family,Office for National Statistics,20/10/2022,Exp - Purchase Of Goods/Services - Contractors,Tech Delivery Next Gen IT And Infrastructure,Parity Resources Limited,244020," 12,421.50 ",Information Management Services,Large,Programme Expenditure
UK Statistics Family,Office for National Statistics,21/10/2022,Exp - Purchase Of Goods/Services - Contractors,Tech Delivery Legacy Sp,La International,244147," 4,165.02 ",Information Management Services,SME,Programme Expenditure
UK Statistics Family,Office for National Statistics,21/10/2022,Exp - Purchase Of Goods/Services - Contractors,IT Applications,La International,244147," 20,901.04 ",Information Management Services,SME,Programme Expenditure
UK Statistics Family,Office for National Statistics,21/10/2022,Other Goods And Services,Covid Infection Survey,Lancaster University,244148," 27,999.98 ",Statistical Services,Large,Programme Expenditure
UK Statistics Family,Office for National Statistics,21/10/2022,Exp - Purchase Of Goods/Services - Incentive Payments,Covid Infection Survey,Sodexo Motivation Solutions U.K. ltd,244151," 89,954.40 ",Survey Response Incentive Vouchers,Large,Programme Expenditure
UK Statistics Family,Office for National Statistics,24/10/2022,Exp - Purchase Of Goods/Services - Incentive Payments,Social Surveys Division,Natcen Social Research,244290," 30,294.60 ",Statistical Services,Large,Programme Expenditure
UK Statistics Family,Office for National Statistics,24/10/2022,Exp - Short-Term Contract & Agency Staff - Full Cost,Business Change Support,Concept Information Technology Ltd T/A Concept Resourcing,244293," 3,706.68 ",Information Management Services,Large,Programme Expenditure
UK Statistics Family,Office for National Statistics,24/10/2022,Exp - Short-Term Contract & Agency Staff - Full Cost,Business Change Support,Concept Information Technology Ltd T/A Concept Resourcing,244293," 2,822.78 ",Information Management Services,Large,Programme Expenditure
UK Statistics Family,Office for National Statistics,24/10/2022,Exp - Short-Term Contract & Agency Staff - Full Cost,Business Change Support,Concept Information Technology Ltd T/A Concept Resourcing,244293," 3,706.68 ",Information Management Services,Large,Programme Expenditure
UK Statistics Family,Office for National Statistics,24/10/2022,Exp - Short-Term Contract & Agency Staff - Full Cost,Business Change Support,Concept Information Technology Ltd T/A Concept Resourcing,244293," 2,659.60 ",Information Management Services,Large,Programme Expenditure
UK Statistics Family,Office for National Statistics,24/10/2022,Exp - Short-Term Contract & Agency Staff - Full Cost,Business Change Support,Concept Information Technology Ltd T/A Concept Resourcing,244293," 7,013.58 ",Information Management Services,Large,Programme Expenditure
UK Statistics Family,Office for National Statistics,24/10/2022,Exp - Short-Term Contract & Agency Staff - Full Cost,Business Change Support,Concept Information Technology Ltd T/A Concept Resourcing,244293," 3,495.19 ",Information Management Services,Large,Programme Expenditure
UK Statistics Family,Office for National Statistics,24/10/2022,Exp - Short-Term Contract & Agency Staff - Full Cost,International Trade And Transactions,Concept Information Technology Ltd T/A Concept Resourcing,244293," 1,015.16 ",Information Management Services,Large,Programme Expenditure
UK Statistics Family,Office for National Statistics,24/10/2022,Exp - Short-Term Contract & Agency Staff - Full Cost,International Trade And Transactions,Concept Information Technology Ltd T/A Concept Resourcing,244293," 2,822.78 ",Information Management Services,Large,Programme Expenditure
UK Statistics Family,Office for National Statistics,24/10/2022,Exp - Short-Term Contract & Agency Staff - Full Cost,International Trade And Transactions,Concept Information Technology Ltd T/A Concept Resourcing,244293," 9,895.61 ",Information Management Services,Large,Programme Expenditure
UK Statistics Family,Office for National Statistics,24/10/2022,Exp - Short-Term Contract & Agency Staff - Full Cost,Productivity Research And Professional Development,Concept Information Technology Ltd T/A Concept Resourcing,244293," 1,029.64 ",Information Management Services,Large,Programme Expenditure
UK Statistics Family,Office for National Statistics,24/10/2022,Exp - Purchase Of Goods/Services - Contractors,Testing,La International,244298," 13,585.70 ",Information Management Services,SME,Programme Expenditure
UK Statistics Family,Office for National Statistics,24/10/2022,Exp - Purchase Of Goods/Services - Contractors,Testing,La International,244298," 1,990.59 ",Information Management Services,SME,Programme Expenditure
UK Statistics Family,Office for National Statistics,24/10/2022,Exp - Purchase Of Goods/Services - Contractors,Consultancy Management,La International,244298," 3,681.18 ",Information Management Services,SME,Programme Expenditure
UK Statistics Family,Office for National Statistics,24/10/2022,Exp - Purchase Of Goods/Services - Contractors,Consultancy Management,La International,244298," 3,588.30 ",Information Management Services,SME,Programme Expenditure
UK Statistics Family,Office for National Statistics,24/10/2022,Exp - Purchase Of Goods/Services - Contractors,INTEGRATED DATA STRATEGY AND DELIVERY,La International,244298," 3,450.00 ",Information Management Services,SME,Programme Expenditure
UK Statistics Family,Office for National Statistics,24/10/2022,Exp - Purchase Of Goods/Services - Contractors,Data Architecture,La International,244298," 11,944.74 ",Information Management Services,SME,Programme Expenditure
UK Statistics Family,Office for National Statistics,24/10/2022,Exp - Purchase Of Goods/Services - Contractors,Tech Delivery Next Gen IT And Infrastructure,La International,244298," 3,844.62 ",Information Management Services,SME,Programme Expenditure
UK Statistics Family,Office for National Statistics,24/10/2022,Exp - Purchase Of Goods/Services - Contractors,IT Applications,La International,244298," 7,464.66 ",Information Management Services,SME,Programme Expenditure
UK Statistics Family,Office for National Statistics,24/10/2022,Telecoms,IT Operations,Bt Global Services,244301," 25,782.42 ",Telecommunications,Large,Programme Expenditure
UK Statistics Family,Office for National Statistics,24/10/2022,"ICT Outsourcing, Maintenance And Support",Interviewer Support,Totalmobile Ltd,244302," 130,752.01 ",Information Management Services,SME,Programme Expenditure
UK Statistics Family,Office for National Statistics,24/10/2022,"ICT Outsourcing, Maintenance And Support",Researcher Support And Data Access ,Equiniti-TopLevel,244308," 61,236.00 ",Information Management Services,SME,Programme Expenditure
UK Statistics Family,Office for National Statistics,25/10/2022,IT (Owned) At Cost - Additions,Property Titchfield,Vinci Construction UK Limited,244521," 11,367.56 ",Facilities Mangement Services,Large,Programme Expenditure
UK Statistics Family,Office for National Statistics,25/10/2022,IT (Owned) At Cost - Additions,PROPERTY LONDON 2MS,Vinci Construction UK Limited,244521," 62,694.31 ",Facilities Mangement Services,Large,Programme Expenditure
UK Statistics Family,Office for National Statistics,25/10/2022,FM Contract Payments,Vinci Payments,Vinci Construction UK Limited,244521," 40,957.47 ",Facilities Mangement Services,Large,Programme Expenditure
UK Statistics Family,Office for National Statistics,25/10/2022,Travel And Subsistence,Corporate Centre,Corporate Travel Management ,244526," 63,015.23 ",Travel and Accommodation,SME,Programme Expenditure
UK Statistics Family,Office for National Statistics,25/10/2022,IT (Owned) At Cost - Additions,PROPERTY LONDON 2MS,Gresham Office Furniture Limited,244531," 46,250.98 ",Office Furniture,SME,Programme Expenditure
UK Statistics Family,Office for National Statistics,25/10/2022,IT (Owned) At Cost - Additions,PROPERTY LONDON 2MS,Sutton Creative Ltd,244533," 25,012.92 ",Refurbishment Costs,SME,Programme Expenditure
UK Statistics Family,Office for National Statistics,25/10/2022,Exp - Short-Term Contract & Agency Staff - Full Cost,Business Change Support,Talent International,244537," 8,640.00 ",Information Management Services,SME,Programme Expenditure
UK Statistics Family,Office for National Statistics,25/10/2022,Exp - Short-Term Contract & Agency Staff - Full Cost,Recruitment ,Talent International,244537," 5,187.34 ",Information Management Services,SME,Programme Expenditure
UK Statistics Family,Office for National Statistics,25/10/2022,Exp - Purchase Of Goods/Services - Contractors,Strategy And Architecture,Talent International,244537," 19,320.00 ",Information Management Services,SME,Programme Expenditure
UK Statistics Family,Office for National Statistics,25/10/2022,Major Works Over 25K,Property Newport,TagEvac Limited,244539," 13,620.67 ",Facilities Mangement Services,SME,Programme Expenditure
UK Statistics Family,Office for National Statistics,25/10/2022,Major Works Over 25K,Property Titchfield,TagEvac Limited,244539," 14,187.20 ",Facilities Mangement Services,SME,Programme Expenditure
UK Statistics Family,Office for National Statistics,26/10/2022,Buildings Under Construction,Property Newport,Vinci Construction UK Limited,244669," 151,962.47 ",Facilities Mangement Services,Large,Programme Expenditure
UK Statistics Family,Office for National Statistics,26/10/2022,Surveys,Prices Division,Kantar Public UK Ltd.,244679," 218,353.80 ",Statistical Services,SME,Programme Expenditure
UK Statistics Family,Office for National Statistics,05/10/2022,Other Goods And Services,Crime Income And Wealth,Textkernel,30003785," 47,750.00 ",Marketing and Media,SME,Programme Expenditure
UK Statistics Family,Office for National Statistics,06/10/2022,Exp - Purchase Of Goods/Services - Incentive Payments,Covid Infection Survey,Sodexo Motivation Solutions U.K. ltd,30003787," 1,364,988.34 ",Survey Response Incentive Vouchers,Large,Programme Expenditure
UK Statistics Family,Office for National Statistics,13/10/2022,Exp - Purchase Of Goods/Services - Incentive Payments,Covid Infection Survey,Sodexo Motivation Solutions U.K. ltd,30003792," 1,127,506.68 ",Survey Response Incentive Vouchers,Large,Programme Expenditure
UK Statistics Family,Office for National Statistics,20/10/2022,Electricity,Property Services,Edf Energy,30003796," 28,955.78 ",Utility Charges,Large,Programme Expenditure
UK Statistics Family,Office for National Statistics,20/10/2022,Exp - Purchase Of Goods/Services - Incentive Payments,Covid Infection Survey,Sodexo Motivation Solutions U.K. ltd,30003800," 1,114,725.23 ",Survey Response Incentive Vouchers,Large,Programme Expenditure
UK Statistics Family,Office for National Statistics,28/10/2022,Exp - Purchase Of Goods/Services - Incentive Payments,Covid Infection Survey,Sodexo Motivation Solutions U.K. ltd,30003806," 1,105,291.47 ",Survey Response Incentive Vouchers,Large,Programme Expenditure
UK Statistics Family,Office for National Statistics,31/10/2022,Surveys,Covid Infection Survey,IQVIA Limited,30003812," 6,000,000.00 ",Statistical Services,Large,Programme Expenditure
,,,,,,," 19,257,950.78 ",,,
